[Event "BPB Limburg Open 2019 Group A"]
[Site "Maastricht, Netherlands"]
[Date "2019.06.10"]
[Round "6.4"]
[White "Monroy, Charles"]
[Black "Van Foreest, Jorden"]
[Result "0-1"]
[TimeControl "2h + 15 sec/move"]
[WhiteFideId "621641"]
[BlackFideId "1039784"]
[WhiteElo "2432"]
[BlackElo "2610"]

1. e4 {[%clk 02:00:27]} c6 {[%clk 01:53:54]} {[%emt 00:06:36]} 2. Nf3 {[%clk
01:59:47]} {[%emt 00:00:55]} d5 {[%clk 01:54:02]} {[%emt 00:00:07]} 3. Nc3
{[%clk 01:59:59]} {[%emt 00:00:04]} Qa5 {[%clk 01:54:07]} {[%emt 00:00:10]} 4.
Be2 {[%clk 01:43:22]} {[%emt 00:16:52]} dxe4 {[%clk 01:53:59]} {[%emt
00:00:23]} 5. Nxe4 {[%clk 01:42:57]} {[%emt 00:00:40]} Bf5 {[%clk 01:54:04]}
{[%emt 00:00:09]} 6. Ng3 {[%clk 01:41:35]} {[%emt 00:01:39]} Bg6 {[%clk
01:53:58]} {[%emt 00:00:20]} 7. a3 {[%clk 01:40:57]} {[%emt 00:00:53]} e6
{[%clk 01:54:04]} {[%emt 00:00:09]} 8. Rb1 {[%clk 01:37:04]} {[%emt 00:04:09]}
Nf6 {[%clk 01:51:13]} {[%emt 00:03:05]} 9. b4 {[%clk 01:36:53]} {[%emt
00:00:27]} Qc7 {[%clk 01:49:29]} {[%emt 00:01:58]} 10. Bb2 {[%clk 01:33:03]}
{[%emt 00:04:05]} Nbd7 {[%clk 01:48:36]} {[%emt 00:01:07]} 11. O-O {[%clk
01:30:37]} {[%emt 00:02:43]} Be7 {[%clk 01:42:37]} {[%emt 00:06:14]} 12. Re1
{[%clk 01:30:05]} {[%emt 00:00:47]} O-O {[%clk 01:40:24]} {[%emt 00:02:28]} 13.
Nh4 {[%clk 01:28:49]} {[%emt 00:01:32]} Rfd8 {[%clk 01:33:51]} {[%emt
00:06:49]} 14. Nxg6 {[%clk 01:26:39]} {[%emt 00:02:24]} hxg6 {[%clk 01:33:59]}
{[%emt 00:00:07]} 15. Bf3 {[%clk 01:14:49]} {[%emt 00:12:05]} a5 {[%clk
01:29:16]} {[%emt 00:04:58]} 16. c4 {[%clk 01:09:39]} {[%emt 00:05:25]} Nh7
{[%clk 01:20:35]} {[%emt 00:08:55]} 17. Bc3 {[%clk 01:04:43]} {[%emt 00:05:11]}
Bf6 {[%clk 01:17:51]} {[%emt 00:02:58]} 18. Qe2 {[%clk 00:52:25]} {[%emt
00:12:34]} Ng5 {[%clk 01:13:37]} {[%emt 00:04:29]} 19. Ne4 {[%clk 00:52:20]}
{[%emt 00:00:20]} Nxe4 {[%clk 01:09:46]} {[%emt 00:04:06]} 20. Qxe4 {[%clk
00:51:41]} {[%emt 00:00:54]} axb4 {[%clk 01:06:42]} {[%emt 00:03:19]} 21. axb4
{[%clk 00:51:42]} {[%emt 00:00:14]} Ra3 {[%clk 01:06:09]} {[%emt 00:00:49]} 22.
Re3 {[%clk 00:45:25]} {[%emt 00:06:31]} Bxc3 {[%clk 01:05:25]} {[%emt
00:00:59]} 23. dxc3 {[%clk 00:45:22]} {[%emt 00:00:19]} Nf6 {[%clk 01:03:22]}
{[%emt 00:02:18]} 24. Qc2 {[%clk 00:44:58]} {[%emt 00:00:39]} b6 {[%clk
00:54:24]} {[%emt 00:09:13]} 25. Rd3 {[%clk 00:40:38]} {[%emt 00:04:35]} Rxd3
{[%clk 00:52:23]} {[%emt 00:02:16]} 26. Qxd3 {[%clk 00:40:48]} {[%emt
00:00:06]} Nd7 {[%clk 00:51:27]} {[%emt 00:01:10]} 27. Qd2 {[%clk 00:30:51]}
{[%emt 00:10:13]} Ne5 {[%clk 00:49:57]} {[%emt 00:01:45]} 28. Be2 {[%clk
00:30:46]} {[%emt 00:00:19]} c5 {[%clk 00:49:45]} {[%emt 00:00:27]} 29. Rd1
{[%clk 00:30:32]} {[%emt 00:00:29]} Nc6 {[%clk 00:38:04]} {[%emt 00:11:56]} 30.
g3 {[%clk 00:22:58]} {[%emt 00:07:49]} Ra7 {[%clk 00:36:18]} {[%emt 00:02:00]}
31. Qd6 {[%clk 00:22:10]} {[%emt 00:01:04]} Nd4 {[%clk 00:35:12]} {[%emt
00:01:22]} 32. Qxc7 {[%clk 00:10:08]} {[%emt 00:12:17]} Nxe2+ {[%clk 00:35:20]}
{[%emt 00:00:06]} 33. Kf1 {[%clk 00:10:21]} {[%emt 00:00:02]} Rxc7 {[%clk
00:35:24]} {[%emt 00:00:11]} 34. Rd8+ {[%clk 00:09:53]} {[%emt 00:00:43]} Kh7
{[%clk 00:35:33]} {[%emt 00:00:06]} 35. Kxe2 {[%clk 00:10:06]} {[%emt
00:00:03]} cxb4 {[%clk 00:35:44]} {[%emt 00:00:05]} 36. cxb4 {[%clk 00:10:17]}
{[%emt 00:00:04]} Rxc4 {[%clk 00:35:54]} {[%emt 00:00:04]} 37. Rd7 {[%clk
00:10:11]} {[%emt 00:00:21]} f6 {[%clk 00:29:42]} {[%emt 00:06:26]} 38. Rd6
{[%clk 00:10:17]} {[%emt 00:00:10]} Rxb4 {[%clk 00:29:48]} {[%emt 00:00:10]} 39.
Rxe6 {[%clk 00:10:29]} {[%emt 00:00:04]} g5 {[%clk 00:29:57]} {[%emt 00:00:05]}
40. h3 {[%clk 00:10:27]} {[%emt 00:00:17]} Kg6 {[%clk 00:27:13]} {[%emt
00:02:59]} 41. Re7 {[%clk 00:10:23]} {[%emt 00:00:20]} Rb3 {[%clk 00:27:21]}
{[%emt 00:00:07]} 42. Rc7 {[%clk 00:07:59]} {[%emt 00:02:39]} Rb5 {[%clk
00:21:40]} {[%emt 00:05:56]} 43. Rb7 {[%clk 00:07:53]} {[%emt 00:00:22]} f5
{[%clk 00:21:21]} {[%emt 00:00:34]} 44. Rd7 {[%clk 00:06:37]} {[%emt 00:01:31]}
Re5+ {[%clk 00:20:44]} {[%emt 00:00:52]} 45. Kf3 {[%clk 00:06:27]} {[%emt
00:00:25]} Kf6 {[%clk 00:20:42]} {[%emt 00:00:16]} 46. Rd6+ {[%clk 00:06:15]}
{[%emt 00:00:27]} Re6 {[%clk 00:20:39]} {[%emt 00:00:17]} 47. Rd7 {[%clk
00:05:50]} {[%emt 00:00:41]} g6 {[%clk 00:20:34]} {[%emt 00:00:19]} 48. Rb7
{[%clk 00:03:58]} {[%emt 00:02:07]} Ke5 {[%clk 00:20:16]} {[%emt 00:00:33]} 49.
h4 {[%clk 00:03:51]} {[%emt 00:00:22]} gxh4 {[%clk 00:15:29]} {[%emt 00:05:02]}
50. gxh4 {[%clk 00:04:02]} {[%emt 00:00:04]} Kd5 {[%clk 00:15:38]} {[%emt
00:00:05]} 51. h5 {[%clk 00:01:48]} {[%emt 00:02:30]} gxh5 {[%clk 00:12:24]}
{[%emt 00:03:29]} 52. Kf4 {[%clk 00:01:56]} {[%emt 00:00:07]} Kc6 {[%clk
00:10:56]} {[%emt 00:01:42]} 53. Rh7 {[%clk 00:02:06]} {[%emt 00:00:05]} Re2
{[%clk 00:10:59]} {[%emt 00:00:13]} 54. f3 {[%clk 00:00:53]} {[%emt 00:01:28]}
Rh2 {[%clk 00:11:08]} {[%emt 00:00:05]} 55. Kxf5 {[%clk 00:00:31]} {[%emt
00:00:37]} b5 {[%clk 00:11:19]} {[%emt 00:00:04]} 56. Rh8 {[%clk 00:00:26]}
{[%emt 00:00:21]} b4 {[%clk 00:08:14]} {[%emt 00:03:20]} 57. Rb8 {[%clk
00:00:37]} {[%emt 00:00:04]} Kc5 {[%clk 00:08:27]} {[%emt 00:00:02]} 58. f4
{[%clk 00:00:29]} {[%emt 00:00:22]} Rg2 {[%clk 00:08:30]} {[%emt 00:00:12]} 59.
Rh8 {[%clk 00:00:22]} {[%emt 00:00:22]} Rh2 {[%clk 00:06:33]} {[%emt 00:02:12]}
60. Rb8 {[%clk 00:00:36]} Kc4 {[%clk 00:06:42]} {[%emt 00:00:06]} 61. Kg6
{[%clk 00:00:45]} {[%emt 00:00:06]} h4 {[%clk 00:06:54]} {[%emt 00:00:04]} 62.
f5 {[%clk 00:00:28]} {[%emt 00:00:33]} h3 {[%clk 00:07:05]} {[%emt 00:00:03]}
63. f6 {[%clk 00:00:18]} {[%emt 00:00:26]} Rg2+ {[%clk 00:07:17]} {[%emt
00:00:03]} 64. Kf5 {[%clk 00:00:25]} {[%emt 00:00:08]} h2 {[%clk 00:07:24]}
{[%emt 00:00:08]} 65. Rh8 {[%clk 00:00:37]} {[%emt 00:00:04]} b3 {[%clk
00:07:35]} {[%emt 00:00:04]} 66. Rh4+ {[%clk 00:00:17]} {[%emt 00:00:35]} Kc5
{[%clk 00:07:34]} {[%emt 00:00:15]} 67. f7 {[%clk 00:00:27]} {[%emt 00:00:05]}
Rf2 {[%clk 00:07:18]} {[%emt 00:00:30]} 68. Rf4 {[%clk 00:00:41]} {[%emt
00:00:02]} Rxf4 {[%clk 00:06:56]} {[%emt 00:00:36]} 69. Kxf4 {[%clk 00:00:55]}
{[%emt 00:00:02]} h1=Q {[%clk 00:07:01]} {[%emt 00:00:10]} 70. f8=Q+ {[%clk
00:01:07]} {[%emt 00:00:03]} Kc4 {[%clk 00:05:08]} {[%emt 00:02:08]} 71. Qc8+
{[%clk 00:01:04]} {[%emt 00:00:18]} Kd4 {[%clk 00:04:28]} {[%emt 00:00:55]} 72.
Qd7+ {[%clk 00:00:22]} {[%emt 00:00:59]} Qd5 {[%clk 00:04:36]} {[%emt
00:00:07]} 73. Qg7+ {[%clk 00:00:26]} {[%emt 00:00:11]} Kd3 {[%clk 00:04:15]}
{[%emt 00:00:34]} 74. Qh7+ {[%clk 00:00:26]} {[%emt 00:00:15]} Kc3 {[%clk
00:04:20]} {[%emt 00:00:10]} 0-1

[Event "BPB Limburg Open 2019 Group A"]
[Site "Maastricht, Netherlands"]
[Date "2019.06.10"]
[Round "6.5"]
[White "Donchenko, Alexander"]
[Black "Schiffer, Stefan"]
[Result "1-0"]
[TimeControl "2h + 15 sec/move"]
[WhiteFideId "24603295"]
[BlackFideId "12984523"]
[WhiteElo "2618"]
[BlackElo "2239"]

1. c4 {[%clk 02:00:28]} Nf6 {[%clk 02:00:14]} {[%emt 00:00:15]} 2. g3 {[%clk
02:00:28]} {[%emt 00:00:16]} e6 {[%clk 02:00:10]} {[%emt 00:00:19]} 3. Bg2
{[%clk 02:00:36]} {[%emt 00:00:06]} d5 {[%clk 01:59:49]} {[%emt 00:00:36]} 4.
Nf3 {[%clk 02:00:45]} {[%emt 00:00:06]} c6 {[%clk 01:58:56]} {[%emt 00:01:09]}
5. b3 {[%clk 02:00:16]} {[%emt 00:00:44]} Be7 {[%clk 01:58:28]} {[%emt
00:00:42]} 6. O-O {[%clk 02:00:21]} {[%emt 00:00:11]} O-O {[%clk 01:57:34]}
{[%emt 00:01:09]} 7. Bb2 {[%clk 02:00:19]} {[%emt 00:00:17]} b5 {[%clk
01:54:52]} {[%emt 00:02:56]} 8. Nc3 {[%clk 01:56:49]} {[%emt 00:03:45]} bxc4
{[%clk 01:52:40]} {[%emt 00:02:28]} 9. bxc4 {[%clk 01:56:31]} {[%emt 00:00:33]}
Nbd7 {[%clk 01:50:47]} {[%emt 00:02:07]} 10. d3 {[%clk 01:55:22]} {[%emt
00:01:25]} Rb8 {[%clk 01:45:32]} {[%emt 00:05:29]} 11. Rb1 {[%clk 01:53:43]}
{[%emt 00:01:55]} Nb6 {[%clk 01:40:50]} {[%emt 00:04:57]} 12. Bc1 {[%clk
01:50:46]} {[%emt 00:03:12]} Ba6 {[%clk 01:38:07]} {[%emt 00:02:57]} 13. Be3
{[%clk 01:39:31]} {[%emt 00:11:30]} dxc4 {[%clk 01:31:10]} {[%emt 00:07:13]} 14.
Ne5 {[%clk 01:39:01]} {[%emt 00:00:45]} cxd3 {[%clk 01:27:55]} {[%emt
00:03:30]} 15. Nxc6 {[%clk 01:37:46]} {[%emt 00:01:30]} dxe2 {[%clk 01:25:42]}
{[%emt 00:02:28]} 16. Nxe2 {[%clk 01:37:54]} {[%emt 00:00:07]} Qxd1 {[%clk
01:24:51]} {[%emt 00:01:06]} 17. Rfxd1 {[%clk 01:34:52]} {[%emt 00:03:16]} Bxe2
{[%clk 01:23:31]} {[%emt 00:01:36]} 18. Nxe7+ {[%clk 01:33:33]} {[%emt
00:01:34]} Kh8 {[%clk 01:23:15]} {[%emt 00:00:31]} 19. Rd2 {[%clk 01:32:22]}
{[%emt 00:01:26]} Bc4 {[%clk 01:15:42]} {[%emt 00:07:48]} 20. Nc6 {[%clk
01:31:55]} {[%emt 00:00:43]} Ra8 {[%clk 01:14:55]} {[%emt 00:01:01]} 21. Bc5
{[%clk 01:25:55]} {[%emt 00:06:15]} Rfe8 {[%clk 01:13:17]} {[%emt 00:01:53]} 22.
Ne5 {[%clk 01:25:19]} {[%emt 00:00:50]} Bd5 {[%clk 01:09:42]} {[%emt 00:03:50]}
23. Nxf7+ {[%clk 01:25:23]} {[%emt 00:00:11]} Kg8 {[%clk 01:09:41]} {[%emt
00:00:16]} 24. Nd6 {[%clk 01:25:31]} {[%emt 00:00:08]} Red8 {[%clk 01:08:37]}
{[%emt 00:01:19]} 25. Bh3 {[%clk 01:20:51]} {[%emt 00:04:55]} Nbd7 {[%clk
01:03:04]} {[%emt 00:05:48]} 26. Rxd5 {[%clk 01:16:17]} {[%emt 00:04:49]} Nxc5
{[%clk 00:59:34]} {[%emt 00:03:44]} 27. Rxc5 {[%clk 01:16:27]} {[%emt
00:00:06]} Rxd6 {[%clk 00:59:28]} {[%emt 00:00:21]} 28. Rb7 {[%clk 01:15:18]}
{[%emt 00:01:24]} a6 {[%clk 00:54:43]} {[%emt 00:05:01]} 29. Rcc7 {[%clk
01:14:47]} {[%emt 00:00:45]} g6 {[%clk 00:54:13]} {[%emt 00:00:45]} 30. Rg7+
{[%clk 01:11:39]} {[%emt 00:03:23]} Kh8 {[%clk 00:54:13]} {[%emt 00:00:15]} 31.
Rge7 {[%clk 01:11:49]} {[%emt 00:00:05]} Rad8 {[%clk 00:51:18]} {[%emt
00:03:10]} 32. Bxe6 {[%clk 01:11:02]} {[%emt 00:01:02]} Re8 {[%clk 00:50:46]}
{[%emt 00:00:48]} 33. Rxe8+ {[%clk 01:07:30]} {[%emt 00:03:47]} Nxe8 {[%clk
00:50:55]} {[%emt 00:00:04]} 34. Bc4 {[%clk 01:07:30]} {[%emt 00:00:16]} Rc6
{[%clk 00:48:18]} {[%emt 00:02:51]} 35. Bd3 {[%clk 01:07:07]} {[%emt 00:00:39]}
Nc7 {[%clk 00:45:49]} {[%emt 00:02:44]} 36. h4 {[%clk 01:07:15]} {[%emt
00:00:06]} Ne6 {[%clk 00:40:37]} {[%emt 00:05:27]} 37. Ra7 {[%clk 01:06:34]}
{[%emt 00:00:57]} Nc5 {[%clk 00:39:37]} {[%emt 00:01:14]} 38. Bc4 {[%clk
01:06:43]} {[%emt 00:00:07]} h6 {[%clk 00:36:10]} {[%emt 00:03:42]} 39. Kg2
{[%clk 01:06:32]} {[%emt 00:00:26]} Rf6 {[%clk 00:33:39]} {[%emt 00:02:45]} 40.
Rc7 {[%clk 01:04:24]} {[%emt 00:02:23]} Ne6 {[%clk 00:29:11]} {[%emt 00:04:43]}
41. Re7 {[%clk 01:01:39]} {[%emt 00:03:00]} Nc5 {[%clk 00:28:38]} {[%emt
00:00:49]} 42. Ra7 {[%clk 00:56:39]} {[%emt 00:05:15]} h5 {[%clk 00:22:57]}
{[%emt 00:05:56]} 43. Rc7 {[%clk 00:56:09]} {[%emt 00:00:45]} Ne6 {[%clk
00:22:36]} {[%emt 00:00:37]} 44. Re7 {[%clk 00:56:16]} {[%emt 00:00:07]} Nc5
{[%clk 00:22:04]} {[%emt 00:00:46]} 45. Ra7 {[%clk 00:56:29]} {[%emt 00:00:03]}
Ne4 {[%clk 00:16:34]} {[%emt 00:05:44]} 46. Rf7 {[%clk 00:55:52]} {[%emt
00:00:52]} Rd6 {[%clk 00:14:48]} {[%emt 00:02:01]} 47. Re7 {[%clk 00:55:18]}
{[%emt 00:00:50]} Nc5 {[%clk 00:14:17]} {[%emt 00:00:46]} 48. Rc7 {[%clk
00:53:24]} {[%emt 00:02:08]} Ne4 {[%clk 00:13:57]} {[%emt 00:00:35]} 49. Bb3
{[%clk 00:53:13]} {[%emt 00:00:26]} Rd2 {[%clk 00:11:01]} {[%emt 00:03:12]} 50.
Rc2 {[%clk 00:35:54]} {[%emt 00:17:34]} Rd6 {[%clk 00:10:53]} {[%emt 00:00:23]}
51. Ba4 {[%clk 00:34:20]} {[%emt 00:01:49]} Rd4 {[%clk 00:09:30]} {[%emt
00:01:39]} 52. Rc8+ {[%clk 00:33:37]} {[%emt 00:00:58]} Kg7 {[%clk 00:09:16]}
{[%emt 00:00:29]} 53. Rc7+ {[%clk 00:33:24]} {[%emt 00:00:28]} Kh6 {[%clk
00:08:26]} {[%emt 00:01:05]} 54. Bc2 {[%clk 00:33:11]} {[%emt 00:00:29]} Nd6
{[%clk 00:07:31]} {[%emt 00:01:09]} 55. Rc6 {[%clk 00:31:41]} {[%emt 00:01:44]}
a5 {[%clk 00:06:40]} {[%emt 00:01:07]} 56. Rc5 {[%clk 00:30:56]} {[%emt
00:01:00]} a4 {[%clk 00:05:28]} {[%emt 00:01:27]} 57. Kf3 {[%clk 00:30:40]}
{[%emt 00:00:30]} Nc4 {[%clk 00:04:53]} {[%emt 00:00:50]} 58. Rg5 {[%clk
00:29:53]} {[%emt 00:01:01]} Rd2 {[%clk 00:03:55]} {[%emt 00:01:13]} 59. Rxg6+
{[%clk 00:27:20]} {[%emt 00:02:48]} Kh7 {[%clk 00:03:58]} {[%emt 00:00:12]} 60.
Bf5 {[%clk 00:27:31]} {[%emt 00:00:03]} Ne5+ {[%clk 00:02:50]} {[%emt
00:01:23]} 61. Ke3 {[%clk 00:27:42]} {[%emt 00:00:04]} Nc4+ {[%clk 00:01:59]}
{[%emt 00:01:06]} 62. Ke4 {[%clk 00:27:36]} {[%emt 00:00:21]} Re2+ {[%clk
00:01:54]} {[%emt 00:00:20]} 63. Kd3 {[%clk 00:27:31]} {[%emt 00:00:19]} Rxf2
{[%clk 00:01:49]} {[%emt 00:00:21]} 64. Rg5+ {[%clk 00:27:45]} {[%emt
00:00:01]} Kh6 {[%clk 00:01:47]} {[%emt 00:00:17]} 65. Kxc4 {[%clk 00:27:53]}
{[%emt 00:00:07]} Rxa2 {[%clk 00:01:54]} {[%emt 00:00:08]} 66. Rg6+ {[%clk
00:27:05]} {[%emt 00:01:02]} Kh7 {[%clk 00:02:03]} {[%emt 00:00:05]} 67. Kb4
{[%clk 00:27:00]} {[%emt 00:00:21]} Rf2 {[%clk 00:01:45]} {[%emt 00:00:34]} 68.
Rg5+ {[%clk 00:26:57]} {[%emt 00:00:17]} Kh6 {[%clk 00:01:48]} {[%emt
00:00:12]} 69. Bd7 {[%clk 00:27:08]} {[%emt 00:00:04]} 1-0

[Event "BPB Limburg Open 2019 Group A"]
[Site "Maastricht, Netherlands"]
[Date "2019.06.10"]
[Round "6.6"]
[White "Van Foreest, Lucas"]
[Black "Haast, Mark"]
[Result "1/2-1/2"]
[TimeControl "2h + 15 sec/move"]
[WhiteFideId "1039792"]
[BlackFideId "1021133"]
[WhiteElo "2522"]
[BlackElo "2392"]

1. c4 {[%clk 01:53:29]} {[%emt 00:06:59]} e6 {[%clk 01:58:20]} {[%emt
00:02:11]} 2. Nc3 {[%clk 01:53:04]} {[%emt 00:00:41]} d5 {[%clk 01:57:04]}
{[%emt 00:01:30]} 3. d4 {[%clk 01:52:51]} {[%emt 00:00:28]} Be7 {[%clk
01:55:39]} {[%emt 00:01:40]} 4. Nf3 {[%clk 01:49:22]} {[%emt 00:03:44]} Nf6
{[%clk 01:55:27]} {[%emt 00:00:27]} 5. Bf4 {[%clk 01:49:25]} {[%emt 00:00:11]}
O-O {[%clk 01:54:32]} {[%emt 00:01:10]} 6. e3 {[%clk 01:48:18]} {[%emt
00:01:23]} c5 {[%clk 01:36:27]} {[%emt 00:18:20]} 7. dxc5 {[%clk 01:48:14]}
{[%emt 00:00:20]} Qa5 {[%clk 01:35:01]} {[%emt 00:01:40]} 8. Nd2 {[%clk
01:38:32]} {[%emt 00:09:57]} Qxc5 {[%clk 01:27:07]} {[%emt 00:08:09]} 9. Be2
{[%clk 01:12:58]} {[%emt 00:25:48]} dxc4 {[%clk 01:25:10]} {[%emt 00:02:13]} 10.
Nxc4 {[%clk 01:09:03]} {[%emt 00:04:10]} Rd8 {[%clk 01:20:21]} {[%emt
00:05:03]} 1/2-1/2